bitfinex/quotes_BTCUSD_20230118
["timestamp","ask_amount","ask_price","bid_price","bid_amount"]
[1674055683002,0.0659,21418.0,21417.0,1.58984684]
[1674055683649,0.0659,21418.0,21417.0,1.28567384]
[1674055683860,0.0659,21418.0,21417.0,1.58984584]
[1674055685293,0.0659,21418.0,21417.0,1.7404923]
[1674055685565,0.0659,21418.0,21417.0,1.53655446]
[1674055686065,0.0659,21418.0,21417.0,1.95605208]
[1674055686825,0.0659,21418.0,21417.0,1.53655446]
[1674055687083,0.0659,21418.0,21417.0,1.90855141]
[1674055687588,0.0659,21418.0,21417.0,1.53655446]
[1674055687834,0.0659,21418.0,21417.0,1.9222788]
[1674055689254,0.0659,21418.0,21417.0,1.97095277]
[1674055690158,0.0659,21418.0,21417.0,1.89685277]
[1674055690658,0.06548192,21418.0,21417.0,1.89685277]
[1674055690920,0.27866875,21423.0,21417.0,1.58472843]
[1674055691169,0.27866875,21423.0,21421.0,0.0741]
[1674055691394,0.27866875,21423.0,21422.0,2.171328]
[1674055694938,0.27866875,21423.0,21422.0,2.17197431]
[1674055696553,0.27866875,21423.0,21422.0,2.17159275]
[1674055698170,0.27866875,21423.0,21422.0,2.17094644]
[1674055705867,0.27866875,21423.0,21422.0,1.70413744]
[1674055707179,0.27866875,21423.0,21422.0,1.400427]
[1674055709015,0.27866875,21423.0,21422.0,1.704116]
[1674055709985,0.27866875,21423.0,21422.0,1.400427]
[1674055710204,0.27366875,21423.0,21422.0,1.400427]
[1674055712490,0.27366875,21423.0,21422.0,1.704116]
[1674055717406,0.27366875,21423.0,21422.0,2.63781579]
[1674055719161,0.27366875,21423.0,21422.0,2.7498612]
[1674055719657,0.27366875,21423.0,21422.0,3.10546747]
[1674055719933,0.27366875,21423.0,21422.0,2.7498612]
[1674055721441,0.27366875,21423.0,21422.0,2.91792932]
[1674055721695,0.27366875,21423.0,21422.0,2.33412679]
[1674055721948,0.27366875,21423.0,21422.0,1.86738007]
[1674055722194,0.27366875,21423.0,21422.0,1.40057107]
[1674055722701,0.27366875,21423.0,21422.0,0.93376207]
[1674055723006,0.38571416,21423.0,21422.0,0.466809]
[1674055723249,0.55378228,21423.0,21421.0,0.466818]
[1674055723502,0.55378228,21423.0,21419.0,0.28011353]
[1674055723762,0.74045675,21423.0,21418.0,0.466881]
[1674055724018,0.15,21422.0,21418.0,0.90605597]
[1674055724288,0.809516,21421.0,21418.0,0.43917497]
[1674055724546,0.314865,21420.0,21418.0,0.43917497]
[1674055724811,0.8125,21420.0,21418.0,0.43917497]
[1674055725072,0.307293,21419.0,21418.0,0.43917497]
[1674055725357,0.8125,21420.0,21418.0,0.43917497]
[1674055725601,0.8125,21420.0,21415.0,0.074]
[1674055725602,1.279356,21420.0,21415.0,0.074]
[1674055725878,0.329205,21419.0,21416.0,0.466927]
[1674055726184,1.33583899,21420.0,21415.0,0.93677504]
[1674055726185,1.33584899,21420.0,21415.0,0.93677504]
[1674055726445,0.466875,21419.0,21415.0,0.93677504]
[1674055726696,0.93375,21419.0,21415.0,0.46983204]
[1674055727736,0.93375,21419.0,21415.0,0.93679304]
[1674055728001,1.33584899,21420.0,21415.0,0.93679304]
[1674055728255,0.933753,21419.0,21415.0,0.93679404]
[1674055729010,0.05971361,21418.0,21415.0,0.46983204]
[1674055729274,0.320922,21417.0,21415.0,0.46983204]
[1674055729545,0.05971361,21418.0,21415.0,0.46983204]
[1674055729816,0.8472,21416.0,21415.0,0.46983204]
[1674055730339,0.8472,21416.0,21414.0,0.57775886]
[1674055730593,1.78099192,21416.0,21414.0,0.11079386]
[1674055730862,0.32341,21415.0,21414.0,0.11079386]
[1674055731385,0.32341,21415.0,21414.0,0.60946133]
[1674055731633,1.31405192,21416.0,21414.0,0.60946133]
[1674055731896,0.338488,21415.0,21414.0,0.60946133]
[1674055732417,0.80545,21415.0,21414.0,0.11079386]
[1674055732724,0.338488,21415.0,21414.0,0.11079386]
[1674055732933,0.84711192,21416.0,21414.0,0.11079386]
[1674055733994,0.84711192,21416.0,21414.0,0.57777586]
[1674055734755,0.84711192,21416.0,21414.0,1.04475986]
[1674055736494,0.84711192,21416.0,21415.0,0.38576876]
[1674055736749,0.84711192,21416.0,21415.0,1.31969276]
[1674055737520,0.84711192,21416.0,21415.0,1.78665476]
[1674055737769,0.84711192,21416.0,21415.0,2.16456476]
[1674055738567,0.84711192,21416.0,21415.0,2.31456476]
[1674055738799,0.48520745,21423.0,21415.0,2.31456476]
[1674055739049,0.8422,21420.0,21418.0,0.074]
[1674055739327,0.8422,21420.0,21419.0,1.704339]
[1674055739616,0.8422,21420.0,21419.0,0.933728]
[1674055741735,0.8403,21421.0,21419.0,0.933728]
[1674055741931,0.37366875,21423.0,21420.0,0.303726]
[1674055742187,0.8403,21422.0,21421.0,1.400493]
[1674055743720,0.8403,21422.0,21421.0,1.395493]
[1674055743948,0.8403,21422.0,21421.0,0.928662]
[1674055745739,0.37366875,21423.0,21421.0,0.928662]
[1674055746017,0.37366875,21423.0,21422.0,0.303691]
[1674055746304,0.37366875,21423.0,21422.0,1.237309]
[1674055746569,1.23956875,21423.0,21422.0,0.933618]
[1674055747338,0.37366875,21423.0,21422.0,1.237307]
[1674055748113,0.37366875,21423.0,21422.0,0.933618]
[1674055748373,1.23956875,21423.0,21422.0,0.933618]
[1674055748890,0.37366875,21423.0,21422.0,1.237307]
[1674055749146,0.37366875,21423.0,21422.0,1.232307]
[1674055750192,0.37366875,21423.0,21422.0,0.928618]
[1674055751439,0.37366875,21423.0,21422.0,1.232307]
[1674055751948,0.37366875,21423.0,21422.0,1.699116]
[1674055752970,0.37366875,21423.0,21422.0,2.24284356]
[1674055755768,0.37366875,21423.0,21422.0,1.699116]
[1674055757804,1.20846875,21423.0,21422.0,1.699116]
[1674055758569,1.20846875,21423.0,21422.0,1.395427]
[1674055759350,1.20846875,21423.0,21422.0,0.928618]
[1674055761570,1.20846875,21423.0,21422.0,1.232307]
[1674055762115,1.20846875,21423.0,21422.0,1.71741595]
[1674055763380,1.20846875,21423.0,21422.0,1.232307]
[1674055763629,1.2622556,21423.0,21422.0,0.928618]
[1674055764885,1.2622556,21423.0,21422.0,0.461809]
[1674055765131,1.2622556,21423.0,21422.0,0.928618]
[1674055767381,1.26190744,21423.0,21422.0,0.928618]
[1674055767635,1.20812059,21423.0,21422.0,0.928618]
[1674055768909,1.20812059,21423.0,21422.0,0.461809]
[1674055770460,1.22912059,21423.0,21422.0,0.930618]
[1674055773280,1.22912059,21423.0,21422.0,1.234307]
[1674055773528,1.22912059,21423.0,21422.0,1.308407]
[1674055775297,1.22912059,21423.0,21422.0,1.234307]
[1674055778584,1.22912059,21423.0,21422.0,0.463809]
[1674055781904,1.22912059,21423.0,21422.0,0.930618]
[1674055782428,1.22912059,21423.0,21422.0,0.463809]
[1674055782677,1.22912059,21423.0,21422.0,0.930618]
[1674055783222,1.22912059,21423.0,21422.0,0.002]
[1674055783486,1.54674159,21423.0,21422.0,0.002]
[1674055783964,1.69674159,21423.0,21422.0,0.002]
[1674055784254,1.80859331,21423.0,21422.0,0.002]
[1674055784504,1.69674159,21423.0,21422.0,0.002]
[1674055786529,1.54674159,21423.0,21422.0,0.002]
[1674055786781,1.54674159,21423.0,21422.0,0.468809]
[1674055787042,1.22382059,21423.0,21422.0,0.002]
[1674055787540,1.53766859,21423.0,21422.0,0.002]
[1674055789556,1.269648,21423.0,21422.0,0.002]
[1674055789818,0.9558,21423.0,21422.0,0.002]
[1674055790076,1.288187,21423.0,21422.0,0.002]
[1674055790849,1.438187,21423.0,21422.0,0.002]
[1674055791062,1.55003872,21423.0,21422.0,0.002]
[1674055791558,1.40003872,21423.0,21422.0,0.002]
[1674055792049,1.06765172,21423.0,21422.0,0.002]
[1674055792318,1.37693472,21423.0,21422.0,0.002]
[1674055792565,1.265083,21423.0,21422.0,0.468809]
[1674055792821,0.9558,21423.0,21422.0,0.466809]
[1674055793074,0.9558,21423.0,21422.0,0.933618]
[1674055793578,0.9558,21423.0,21422.0,1.237307]
[1674055795322,0.9558,21423.0,21422.0,2.1709751]
[1674055795571,0.121,21423.0,21422.0,2.1709751]
[1674055795827,0.121,21423.0,21422.0,2.43302051]
[1674055796086,0.121,21423.0,21422.0,2.3209751]
[1674055796581,0.121,21423.0,21422.0,2.43302051]
[1674055797092,0.0063977,21425.0,21422.0,2.72595169]
[1674055797365,0.0063977,21425.0,21424.0,0.41797582]
[1674055797616,0.0063977,21425.0,21424.0,2.99499551]
[1674055797875,7e-07,21425.0,21424.0,3.14499551]
[1674055798132,0.00671873,21428.0,21425.0,0.15]
[1674055798390,0.00671873,21428.0,21427.0,0.49312205]
[1674055798656,7.3e-07,21428.0,21427.0,0.684956]
[1674055798931,0.0063977,21429.0,21428.0,0.15]
[1674055799167,0.0066974,21431.0,21429.0,0.2816]
[1674055799414,0.0066974,21431.0,21430.0,1.851163]
[1674055800174,0.0066974,21431.0,21430.0,2.33341005]
[1674055800434,0.0066974,21431.0,21430.0,2.56672005]
[1674055800689,0.0066974,21431.0,21430.0,4.08138792]
[1674055801194,0.0066974,21431.0,21430.0,3.77911121]
[1674055801469,0.0066974,21431.0,21430.0,3.96909774]
[1674055801733,0.0086974,21431.0,21430.0,2.50808795]
[1674055802250,0.0086974,21431.0,21430.0,2.20067795]
[1674055802497,0.0086974,21431.0,21430.0,2.27477795]
[1674055804789,0.0086974,21431.0,21430.0,2.12707795]
[1674055805384,0.0086974,21431.0,21430.0,1.66044295]
[1674055805570,0.8169974,21431.0,21430.0,0.99327]
[1674055805828,0.8169974,21431.0,21430.0,0.526635]
[1674055807105,0.8169974,21431.0,21430.0,0.99327]
[1674055807356,0.8169974,21431.0,21430.0,1.75767288]
[1674055808166,0.0086974,21431.0,21430.0,1.75767288]
[1674055810406,0.0086974,21431.0,21430.0,1.75317288]
[1674055810660,0.0086974,21431.0,21430.0,1.90317288]
[1674055811923,0.0086974,21431.0,21430.0,1.75317288]
[1674055812684,0.0086974,21431.0,21430.0,2.21980788]
[1674055813439,0.0086974,21431.0,21430.0,2.29980788]
[1674055813950,0.0086974,21431.0,21430.0,2.44980788]
[1674055814734,0.0086974,21431.0,21430.0,2.29980788]
[1674055816132,0.8077974,21431.0,21430.0,2.29980788]
[1674055817402,0.8077974,21431.0,21430.0,1.838958]
[1674055817668,0.8077974,21431.0,21430.0,1.535405]
[1674055817925,0.8077974,21431.0,21430.0,0.602135]
[1674055818201,0.8077974,21431.0,21430.0,1.06877]
[1674055821775,0.8077974,21431.0,21430.0,0.14]
[1674055822031,1.1342414,21431.0,21430.0,0.14]
[1674055822297,0.8077974,21431.0,21430.0,0.606635]
[1674055823076,0.8077974,21431.0,21430.0,0.14]
[1674055823575,0.8077974,21431.0,21430.0,0.606635]
[1674055824042,0.8077974,21431.0,21430.0,1.073067]
[1674055824320,0.8077974,21431.0,21430.0,0.606432]
[1674055824593,1.1141144,21431.0,21430.0,0.139797]
[1674055824855,1.16437725,21431.0,21430.0,0.139797]
[1674055825113,1.31257725,21431.0,21430.0,0.139797]
[1674055825356,2.19911921,21431.0,21430.0,0.139797]
[1674055825606,1.78351335,21431.0,21430.0,0.139797]
[1674055825850,2.34911921,21431.0,21430.0,0.139797]
[1674055826104,1.88250621,21431.0,21430.0,0.139797]
[1674055826350,1.93351335,21431.0,21430.0,0.139797]
[1674055826608,1.93907497,21431.0,21430.0,0.139797]
[1674055826884,2.40679824,21431.0,21430.0,0.139797]
[1674055827132,2.43879824,21431.0,21430.0,0.144797]
[1674055827372,2.40479824,21431.0,21430.0,0.08]
[1674055827887,2.8204041,21431.0,21430.0,0.08]
[1674055828418,2.8204041,21431.0,21430.0,0.02456774]
[1674055828419,2.75914626,21431.0,21430.0,0.02456774]
[1674055828664,2.75914626,21431.0,21424.0,0.13854123]
[1674055828665,0.20077397,21430.0,21424.0,0.13854123]
[1674055828917,0.0737,21425.0,21424.0,0.13854123]
[1674055829166,0.399799,21425.0,21424.0,0.13854123]
[1674055829675,1.333287,21425.0,21424.0,0.13854123]
[1674055829932,2.174387,21425.0,21424.0,0.13854123]
[1674055830697,2.25871877,21425.0,21421.0,0.01402029]
[1674055830953,0.0736,21423.0,21421.0,0.01402029]
[1674055831203,0.325414,21422.0,21421.0,0.01402029]
[1674055831728,1.407132,21422.0,21415.0,0.85769753]
[1674055831987,0.0736,21418.0,21415.0,0.85734911]
[1674055832258,0.324007,21417.0,21414.0,0.466973]
[1674055832530,1.11258224,21420.0,21415.0,0.46695]
[1674055832798,0.54096,21420.0,21415.0,0.46695]
[1674055833047,0.54096,21420.0,21415.0,0.933912]
[1674055833048,0.0741,21420.0,21415.0,0.933912]
[1674055833295,0.13693543,21420.0,21415.0,0.47095]
[1674055833590,0.313995,21419.0,21415.0,0.481592]
[1674055833818,0.86,21419.0,21415.0,0.485592]
[1674055834106,0.315947,21418.0,21416.0,0.39894436]
[1674055834338,0.86,21419.0,21416.0,0.86587036]
[1674055834600,0.86,21419.0,21416.0,1.33281036]
[1674055835121,0.328216,21418.0,21416.0,0.46694]
[1674055835398,0.86,21419.0,21416.0,0.466935]
[1674055835399,0.323383,21417.0,21416.0,0.466935]
[1674055835647,0.9424,21419.0,21416.0,0.470935]
[1674055835919,0.86,21419.0,21416.0,0.93388]
[1674055836474,0.86,21419.0,21416.0,0.93788]
[1674055836733,0.86,21419.0,21416.0,1.37647997]
[1674055837240,0.06283543,21420.0,21416.0,1.37647997]
[1674055837503,0.06283543,21420.0,21417.0,0.303776]
[1674055837765,0.8102,21419.0,21418.0,1.400691]
[1674055838037,0.06283543,21420.0,21418.0,1.400691]
[1674055838282,0.8012,21419.0,21418.0,1.400691]
[1674055838536,0.05947121,21422.0,21418.0,1.400691]
[1674055838802,0.7945,21421.0,21419.0,0.37947595]
[1674055839061,0.7945,21421.0,21420.0,0.466853]
[1674055839327,0.7945,21421.0,21420.0,0.417853]
[1674055839578,1.112472,21421.0,21419.0,0.466858]
[1674055839803,0.314422,21420.0,21419.0,0.470858]
[1674055840106,0.8045,21421.0,21419.0,0.470858]
[1674055840375,0.44903205,21420.0,21419.0,0.004]
[1674055840639,0.59903205,21420.0,21419.0,0.004]
[1674055840896,0.44903205,21420.0,21415.0,0.481586]
[1674055841159,0.408549,21419.0,21415.0,0.481586]
[1674055841485,0.796137,21418.0,21415.0,0.481586]
[1674055841657,0.323915,21417.0,21415.0,0.481586]
[1674055841912,1.162448,21416.0,21415.0,0.014642]
[1674055842425,1.162448,21416.0,21415.0,0.018642]
[1674055842672,1.162448,21416.0,21415.0,0.014642]
[1674055842904,1.162448,21416.0,21415.0,0.018642]
[1674055843424,2.58155716,21416.0,21415.0,0.018642]
[1674055843683,2.63915388,21416.0,21415.0,0.018642]
[1674055843983,2.63915388,21416.0,21415.0,0.014642]
[1674055844201,2.64815388,21416.0,21415.0,0.018642]
[1674055844462,2.63915388,21416.0,21415.0,0.014642]
[1674055844728,2.84615388,21416.0,21415.0,0.015642]
[1674055845267,2.28432472,21416.0,21415.0,0.015642]
[1674055846362,1.35044472,21416.0,21415.0,0.015642]
[1674055847423,1.81738472,21416.0,21415.0,0.015642]
[1674055848517,2.28432472,21416.0,21415.0,0.015642]
[1674055848763,2.79240163,21416.0,21415.0,0.015642]
[1674055849310,2.79272409,21416.0,21415.0,0.015642]
[1674055849558,2.86474944,21416.0,21415.0,0.015642]
[1674055851353,1.27497007,21416.0,21415.0,0.015642]
[1674055851941,0.95352207,21416.0,21415.0,0.015642]
[1674055852128,0.898,21416.0,21415.0,0.949566]
[1674055852892,0.898,21416.0,21415.0,0.482604]
[1674055853396,0.898,21416.0,21415.0,0.949566]
[1674055857082,0.898,21416.0,21415.0,0.015642]
[1674055857556,1.224819,21416.0,21415.0,0.015642]
[1674055857781,1.691759,21416.0,21415.0,0.015642]
[1674055858542,2.158699,21416.0,21415.0,0.015642]
[1674055859054,2.57052816,21416.0,21415.0,0.015642]
[1674055859316,2.72052816,21416.0,21415.0,0.015642]
[1674055859567,2.85935067,21416.0,21415.0,0.015642]
[1674055861084,2.29752151,21416.0,21415.0,0.015642]
[1674055861411,0.046258,21415.0,21413.0,0.01549576]
[1674055861642,0.313423,21414.0,21413.0,0.01549576]
[1674055862200,0.046258,21415.0,21413.0,0.01549576]
[1674055862454,0.056258,21415.0,21413.0,0.48550176]
[1674055862706,0.046258,21415.0,21413.0,0.48250176]
[1674055862948,0.01,21414.0,21413.0,0.48550076]
[1674055863192,0.046258,21415.0,21413.0,0.48250076]
[1674055863443,0.056258,21415.0,21413.0,0.95250676]
[1674055863946,0.056258,21415.0,21414.0,0.303827]
[1674055864195,0.056258,21415.0,21413.0,0.01849576]
[1674055864449,0.056258,21415.0,21414.0,0.933968]
[1674055864763,0.046258,21415.0,21414.0,0.466984]
[1674055864999,0.046258,21415.0,21413.0,1.38055396]
[1674055865300,0.056258,21415.0,21413.0,0.91656096]
[1674055865493,0.046258,21415.0,21413.0,1.38054696]
[1674055865778,0.050258,21415.0,21414.0,0.003]
[1674055866086,0.046258,21415.0,21414.0,0.466984]
[1674055866345,0.046258,21415.0,21413.0,0.91356096]
[1674055866346,0.056258,21415.0,21413.0,0.48548876]
[1674055866608,0.046258,21415.0,21413.0,0.01549576]
[1674055866862,0.35456643,21414.0,21413.0,0.01549576]
[1674055867626,0.82155043,21414.0,21413.0,0.01549576]
[1674055868160,1.29853443,21414.0,21413.0,0.01849576]
[1674055868697,0.83155043,21414.0,21413.0,0.01849576]
[1674055868964,0.36456643,21414.0,21413.0,0.01849576]
[1674055869777,0.05822943,21414.0,21413.0,0.01849576]
[1674055870029,0.99219743,21414.0,21413.0,0.01849576]
[1674055870299,1.47842743,21414.0,21413.0,0.01849576]
[1674055870560,1.32842743,21414.0,21413.0,0.01849576]
[1674055870805,0.86144343,21414.0,21413.0,0.01849576]
[1674055871065,0.39445943,21414.0,21413.0,0.01849576]
[1674055871599,0.05822943,21414.0,21413.0,0.09302576]
[1674055871879,0.05822943,21414.0,21413.0,0.01849576]
[1674055872115,0.99219743,21414.0,21413.0,0.01849576]
[1674055872381,1.30583043,21414.0,21413.0,0.01849576]
[1674055872913,0.83884643,21414.0,21413.0,0.01849576]
[1674055874182,0.98884643,21414.0,21413.0,0.01849576]
[1674055874436,0.83884643,21414.0,21413.0,0.01849576]
[1674055874946,1.30583043,21414.0,21413.0,0.01849576]
[1674055875206,0.98884643,21414.0,21413.0,0.01849576]
[1674055875484,1.45583043,21414.0,21413.0,0.01849576]
[1674055875992,1.52923043,21414.0,21413.0,0.01849576]
[1674055876525,1.30583043,21414.0,21413.0,0.01849576]
[1674055877269,1.30583043,21414.0,21411.0,0.01670697]
[1674055877270,1.69669817,21414.0,21411.0,0.01670697]
[1674055877548,0.1629891,21412.0,21410.0,0.01642964]
[1674055877841,0.1629891,21412.0,21410.0,2.964e-05]
[1674055877842,0.317287,21411.0,21410.0,2.964e-05]
[1674055878077,0.317287,21411.0,21409.0,0.01670697]
[1674055878078,0.15,21410.0,21409.0,0.01670697]
[1674055878353,1.95454516,21410.0,21409.0,0.01670697]
[1674055878607,0.15,21409.0,21401.0,0.00101]
[1674055878864,0.1482,21405.0,21401.0,0.00101]
[1674055879125,0.338111,21405.0,21401.0,0.00101]
[1674055879378,1.83430016,21405.0,21401.0,0.00101]
[1674055879637,0.15,21404.0,21401.0,0.00101]
[1674055879889,0.15,21404.0,21394.0,0.39103375]
[1674055879890,0.1475,21402.0,21394.0,0.39103375]
[1674055880161,1.19887052,21401.0,21395.0,0.38614968]
[1674055880478,0.87734252,21401.0,21397.0,0.4652647]
[1674055880672,0.8046,21400.0,21397.0,0.4652647]
[1674055880961,0.8046,21400.0,21399.0,0.42240385]
[1674055881198,0.7883644,21400.0,21399.0,0.42240385]
[1674055881458,0.7883644,21400.0,21395.0,0.0741]
[1674055881713,0.7883644,21400.0,21396.0,0.43172147]
[1674055881714,0.335904,21399.0,21396.0,0.43172147]
[1674055881967,0.343107,21398.0,21396.0,0.43172147]
[1674055882235,0.7883644,21400.0,21398.0,0.46160361]
[1674055882480,0.7883644,21400.0,21395.0,0.21917]
[1674055882751,0.06206957,21399.0,21396.0,0.45695666]
[1674055883519,0.337541,21398.0,21396.0,0.45695666]
[1674055883776,0.318041,21397.0,21396.0,0.45695666]
[1674055884044,0.07106957,21399.0,21396.0,0.45695666]
[1674055884302,0.53838857,21399.0,21396.0,0.45695666]
[1674055884564,0.332531,21398.0,21394.0,0.47316765]
[1674055884844,0.317221,21397.0,21394.0,0.47316765]
[1674055885090,0.324273,21396.0,21391.0,0.691484]
[1674055885343,0.33373942,21398.0,21393.0,0.0738]
[1674055885596,0.009,21399.0,21394.0,1.313083]
[1674055885855,0.009,21398.0,21394.0,1.008921]
[1674055886106,0.85247015,21400.0,21394.0,1.008921]
[1674055886369,0.009,21396.0,21394.0,1.008921]
[1674055886952,0.009,21396.0,21395.0,0.304145]
[1674055887426,0.009,21396.0,21395.0,0.771543]
[1674055887935,0.009,21396.0,21394.0,0.9341888]
[1674055888197,0.0564224,21398.0,21394.0,0.9341888]
[1674055888753,0.0564224,21398.0,21394.0,0.4667798]
[1674055888991,0.009,21396.0,21394.0,0.4667798]
[1674055889251,0.6737614,21398.0,21394.0,0.4667798]
[1674055889518,0.5327614,21398.0,21394.0,0.4667798]
[1674055889791,0.0564224,21398.0,21394.0,0.4667798]
[1674055890328,0.5237604,21398.0,21394.0,0.4667798]
[1674055890588,0.5237604,21398.0,21393.0,0.48531798]
[1674055890589,0.309186,21397.0,21393.0,0.48531798]
[1674055890879,0.794473,21396.0,21391.0,0.39772762]
[1674055891103,0.795,21395.0,21393.0,0.37839462]
[1674055891375,0.302952,21394.0,21393.0,0.37839462]
[1674055891886,0.795,21395.0,21393.0,0.37839462]
[1674055892399,0.804,21395.0,21393.0,0.84583362]
[1674055892649,0.795,21395.0,21393.0,0.84583362]
[1674055892915,0.009,21394.0,21393.0,0.467439]
[1674055893175,0.795,21395.0,21394.0,0.4438381]
[1674055893501,0.804,21395.0,21394.0,1.4521781]
[1674055893688,0.804,21395.0,21394.0,1.8304421]
[1674055893940,0.804,21395.0,21394.0,1.9804421]
[1674055894206,0.795,21395.0,21394.0,2.02747115]
[1674055894462,0.803,21395.0,21394.0,2.03347115]
[1674055894722,0.795,21395.0,21394.0,2.02747115]
[1674055894994,0.21712368,21400.0,21394.0,1.8304421]
[1674055895266,0.05188866,21398.0,21394.0,1.4527781]
[1674055895522,0.47585753,21401.0,21396.0,0.0741]
[1674055895785,0.06578501,21401.0,21397.0,0.771465]
[1674055896066,0.06578501,21401.0,21397.0,0.46735]
[1674055896300,0.008,21398.0,21397.0,0.46735]
[1674055896581,0.06578501,21401.0,21397.0,0.46735]
[1674055896863,0.07478501,21401.0,21397.0,0.47335]
[1674055897119,0.06578501,21401.0,21397.0,0.934705]
[1674055897380,0.01,21398.0,21397.0,0.939705]
[1674055897631,0.06578501,21401.0,21397.0,0.934705]
[1674055897908,0.06678501,21401.0,21397.0,1.018705]
[1674055898173,0.001,21401.0,21398.0,0.41435424]
[1674055898771,0.001,21401.0,21399.0,1.312504]
[1674055898958,0.06059777,21405.0,21399.0,1.008422]
[1674055900265,0.06059777,21405.0,21399.0,1.100422]
[1674055900815,0.15,21410.0,21399.0,1.100422]
[1674055901082,0.15,21410.0,21407.0,0.0739]
[1674055901083,0.04756011,21410.0,21407.0,0.0739]
[1674055901344,0.05299065,21408.0,21407.0,0.0739]
[1674055901615,0.05299065,21408.0,21407.0,1.008145]
[1674055902151,0.05299065,21408.0,21407.0,1.312086]
[1674055902408,0.051513,21411.0,21407.0,1.405086]
[1674055902685,0.05706184,21409.0,21407.0,1.101145]
[1674055902960,0.05079934,21407.0,21405.0,0.467168]
[1674055903230,0.05079934,21407.0,21402.0,0.467242]
[1674055903231,0.312493,21406.0,21402.0,0.467242]
[1674055903525,0.51793934,21407.0,21400.0,0.94571232]
[1674055903526,0.301868,21405.0,21400.0,0.94571232]
[1674055903779,0.46087186,21407.0,21402.0,0.467246]
[1674055904075,0.05079934,21407.0,21405.0,0.093]
[1674055904639,0.467114,21409.0,21405.0,0.093]
[1674055904919,0.15,21406.0,21401.0,0.934515]
[1674055905186,0.38673746,21405.0,21402.0,0.467232]
[1674055905441,0.3138,21404.0,21402.0,0.467232]
[1674055905696,0.05963546,21405.0,21402.0,0.467232]
[1674055905697,0.05925669,21405.0,21402.0,0.467232]
[1674055905958,0.05925669,21405.0,21401.0,0.467248]
[1674055906217,0.05925669,21405.0,21401.0,0.468248]
[1674055906470,0.05925669,21405.0,21401.0,0.467261]
[1674055906717,0.52643769,21405.0,21402.0,0.001]
[1674055906974,0.552319,21404.0,21397.0,0.87373708]
[1674055907225,0.552319,21404.0,21395.0,0.37645]
[1674055907226,0.934496,21402.0,21395.0,0.46611631]
[1674055907497,0.71479752,21401.0,21395.0,0.46611631]
[1674055907754,1.34311752,21400.0,21395.0,0.46611631]
[1674055908015,0.306247,21399.0,21395.0,0.46611631]
[1674055908300,0.41007252,21400.0,21397.0,0.46962377]
[1674055908532,0.617271,21401.0,21397.0,0.46962377]
[1674055908784,0.324653,21400.0,21397.0,0.46962377]
[1674055909062,0.310202,21399.0,21395.0,0.092]
[1674055909284,0.306529,21398.0,21394.0,0.35708566]
[1674055909543,1.47362816,21400.0,21397.0,0.092]
[1674055909838,0.52245364,21400.0,21397.0,0.092]
[1674055910108,0.32867,21399.0,21397.0,0.092]
[1674055910375,0.331716,21398.0,21397.0,0.092]
[1674055910893,0.52245364,21400.0,21397.0,0.092]
[1674055911143,0.319716,21399.0,21396.0,0.35005303]
[1674055911395,0.311254,21398.0,21397.0,0.07553]
[1674055911646,0.41007252,21401.0,21397.0,0.07553]
[1674055911899,1.68704416,21402.0,21397.0,0.07553]
[1674055912188,1.68704416,21402.0,21397.0,0.07453]
[1674055912416,0.05411769,21400.0,21397.0,0.094]
[1674055912670,0.05411769,21400.0,21396.0,0.35005303]
[1674055912671,0.0587362,21398.0,21394.0,0.541218]
[1674055912925,0.0587362,21398.0,21397.0,0.033]
[1674055913179,0.3809662,21398.0,21397.0,0.033]
[1674055914763,0.8482992,21398.0,21397.0,0.094]
[1674055915038,0.8482992,21398.0,21393.0,0.540933]
[1674055915039,0.9982992,21398.0,21393.0,0.467433]
[1674055915294,0.72987852,21397.0,21393.0,0.467433]
[1674055915588,0.303304,21396.0,21391.0,0.84026515]
[1674055915818,0.32278,21395.0,21391.0,0.84025415]
[1674055916092,0.467381,21396.0,21393.0,0.43449974]
[1674055916333,0.87744652,21397.0,21393.0,0.43449974]
[1674055916334,0.934744,21397.0,21393.0,0.52749974]
[1674055916587,0.467371,21397.0,21393.0,0.52749974]
[1674055916858,1.0720692,21398.0,21393.0,0.99493974]
[1674055917164,0.6047362,21398.0,21393.0,1.53628174]
[1674055917673,0.6047362,21398.0,21393.0,1.44328174]
[1674055918196,0.6047362,21398.0,21393.0,1.36938174]
[1674055918444,0.05533362,21396.0,21393.0,1.46238174]
[1674055918703,0.327875,21395.0,21393.0,0.093]
[1674055918956,0.303529,21394.0,21393.0,0.093]
[1674055919216,0.52272262,21396.0,21392.0,0.9521151]
[1674055919474,0.52272262,21396.0,21393.0,0.092]
[1674055919727,0.99008762,21396.0,21393.0,0.092]
[1674055920030,0.322369,21395.0,21393.0,0.092]
[1674055920266,0.794698,21394.0,21393.0,0.092]
[1674055920524,0.327278,21394.0,21393.0,0.092]
[1674055920779,0.467411,21395.0,21391.0,0.90876936]
[1674055921035,0.467411,21395.0,21393.0,0.093]
[1674055921285,0.52272362,21396.0,21393.0,0.093]
[1674055921557,0.52271262,21396.0,21393.0,0.560431]
[1674055921818,0.7902,21395.0,21393.0,0.95198482]
[1674055922119,1.013336,21398.0,21393.0,1.58592682]
[1674055922335,0.7902,21397.0,21394.0,0.304167]
[1674055922595,0.7902,21397.0,21395.0,1.402194]
[1674055923096,0.7902,21397.0,21395.0,0.467398]
[1674055923352,0.7902,21397.0,21395.0,0.934796]
[1674055923605,0.05537265,21398.0,21395.0,1.028796]
[1674055923859,0.53239737,21401.0,21396.0,0.304133]
[1674055924126,0.7999,21399.0,21397.0,0.934691]
[1674055924374,0.467241,21403.0,21397.0,1.008791]
[1674055924629,0.7999,21401.0,21398.0,0.73304192]
[1674055924895,0.7999,21401.0,21398.0,0.42894592]
[1674055925144,0.7999,21401.0,21399.0,0.934622]
[1674055925400,0.86057179,21401.0,21399.0,0.934622]
[1674055925662,0.11177332,21404.0,21399.0,1.008722]
[1674055925978,0.7999,21403.0,21400.0,0.304064]
[1674055926206,0.7999,21403.0,21401.0,0.934534]
[1674055926473,0.7999,21404.0,21401.0,0.934534]
[1674055926742,0.05618806,21403.0,21401.0,0.934534]